[Event "Oceania Zonal Open 2023"]
[Site "Melbourne"]
[Date "2023.01.23"]
[Round "1.9"]
[White "Nemeth, John"]
[Black "Pritchard, Max"]
[Result "1-0"]
[ECO "D78"]
[WhiteElo "2157"]
[BlackElo "1617"]
[Annotator "TA"]
[PlyCount "43"]
[EventDate "2023.01.09"]
[EventType "swiss"]
[EventCountry "AUS"]
[SourceTitle "playchess.com"]
[Source "ChessBase"]
[SourceQuality "1"]
[TimeControl "5400+30"]

{[%evp 15,43,-35,-20,-85,-18,-35,-8,-11,-12,-22,0,0,0,-3,56,16,70,27,29,22,34,38,30,28,25,29,125,0,211,186]} 1. Nf3 {[%emt 0:00:02]} Nf6 {[%emt 0:00:31]} 2. g3 {[%emt 0:00:16]} g6 {[%emt 0:00:27]} 3. Bg2 {[%emt 0:00:08]} Bg7 {[%emt 0:00:12]} 4. O-O {[%emt 0:00:08]} d5 {[%emt 0:00:24]} 5. c4 {[%emt 0:01:03]} c6 {[%emt 0:00:13]} 6. d4 {[%emt 0:00:48]} O-O {[%emt 0:00:15]} 7. Nc3 {[%emt 0:00:13]} dxc4 {[%emt 0:00:54]} 8. Ne5 {[%emt 0:03:09] 8.e4 is the modern continuation.} Be6 {[%emt 0:05:19]} 9. a4 {[%emt 0:06:29] D78: Fianchetto Grünfeld: 6 0-0 c6.} (9. f4 $11) 9... Nfd7 {[%emt 0:07:46]} (9... Na6 $17) 10. Nf3 $1 $11 {[%emt 0:11:37]} h6 {[%emt 0:07:22] Prevents Ng5.} 11. e4 {[%emt 0:07:05] The position is equal.} Na6 {[%emt 0:08:20] [#]} 12. Be3 $146 {[%emt 0:06:57]} ({Predecessor:} 12. Qe2 Nb4 13. Rd1 Qa5 14. h3 Rad8 15. Bd2 Qa6 16. Be3 Nb6 17. a5 Nc8 18. Ne1 {1-0 Mecit,E (2019)-Isik,C (1710) TUR Cup Antalya 2020 (9)}) 12... Nb4 {[%emt 0:09:13]} 13. Qd2 {[%emt 0:03:09]} Kh7 {[%emt 0:10:17]} 14. a5 {[%emt 0:07:19]} f5 {[%emt 0:06:54]} (14... Qc8 $11) 15. Ra4 {[%emt 0:08:36][%cal Ba1a4,Ba4c4,Bc4e4][%mdl 32]} (15. d5 $5 {[%cal Rd5e6]} Bg8 16. exf5 gxf5 17. dxc6 bxc6 18. Rfd1 $11) 15... Na6 {[%emt 0:02:22]} (15... Nd3 $11) 16. d5 {[%emt 0:07:04]} Ndc5 {[%emt 0:17:44]} 17. dxe6 {[%emt 0:11:50]} Qxd2 {[%emt 0:01:19][%mdl 64] [#] Remove Defender} 18. Nxd2 {[%emt 0:00:14]} Bxc3 {[%emt 0:00:10]} 19. Rxc4 {[%emt 0:00:05]} Bxd2 {[%emt 0:00:16]} 20. Bxd2 {[%emt 0:00:13]} fxe4 {[%emt 0:02:03]} (20... Nxe4 $11 {keeps the balance.} 21. Bxe4 fxe4) 21. b4 {[%emt 0:00:58] White is more active.} ({Only move:} 21. Be3 $16 b6 22. Rb1 (22. Bxe4 Nxe4 23. Rxe4 bxa5 $16) (22. b4 Nd3 $16)) 21... Nxe6 {[%emt 0:00:45] [#]} (21... Nb3 $11 22. Be3 Rad8) 22. Rxe4 {[%emt 0:08:44] Weighted Error Value: White=0.26 (precise) /Black=0.49} 1-0

[Event "Oceania Zonal Open 2023"]
[Site "Melbourne"]
[Date "2023.01.23"]
[Round "1.10"]
[White "Kalina, Leo"]
[Black "Winkelman, Albert"]
[Result "0-1"]
[ECO "C88"]
[WhiteElo "1631"]
[BlackElo "2272"]
[Annotator "TA"]
[PlyCount "64"]
[EventDate "2023.01.09"]
[EventType "swiss"]
[EventCountry "AUS"]
[SourceTitle "playchess.com"]
[Source "ChessBase"]
[SourceQuality "1"]
[TimeControl "5400+30"]

{[%evp 14,63,31,27,70,53,38,25,25,15,19,33,24,33,35,0,51,34,77,53,68,67,64,35,46,33,44,12,40,13,25,0,0,0,32,-171,-183,-133,-139,-912,-897,-29994,-29989,-29989,-29990,-29990,-29991,-29991,-29992,-29992,-29993,-29999]} 1. e4 {[%emt 0:00:05]} e5 {[%emt 0:00:09]} 2. Nf3 {[%emt 0:00:18]} Nc6 {[%emt 0:00:10]} 3. Bb5 {[%emt 0:00:08][%cal Bf1b5,Bb5a4,Ba4b3][%mdl 32]} a6 {[%emt 0:00:07]} 4. Ba4 {[%emt 0:00:08]} Nf6 {[%emt 0:00:09]} 5. O-O {[%emt 0:00:21]} Be7 {[%emt 0:00:11]} 6. Re1 {[%emt 0:00:27]} b5 {[%emt 0:00:10]} 7. Bb3 {[%emt 0:00:08]} O-O {[%emt 0:00:09]} 8. a4 {[%emt 0:00:59]} d5 {[%emt 0:00:09] C88: Closed Ruy Lopez: Anti-Marshall Systems.} 9. exd5 {[%emt 0:04:07]} Na5 {[%emt 0:00:08]} 10. Nxe5 {[%emt 0:11:44] aiming for d4.} Nxb3 {[%emt 0:00:08] White has an edge.} ({But not} 10... Nxd5 11. Bxd5 Qxd5 12. Nc3 $16) 11. cxb3 {[%emt 0:14:20] Nc6 would be deadly.} Bb7 {[%emt 0:02:18]} 12. Nc6 {[%emt 0:05:48]} Bxc6 {[%emt 0:00:08]} 13. dxc6 {[%emt 0:00:11] Black must now prevent axb5.} Bc5 {[%emt 0:00:18]} 14. d3 {[%emt 0:18:48] [#]} (14. d4 $5 Bxd4 15. axb5 $14) 14... Qd5 $146 {[%emt 0:09:28]} ({Black should try} 14... Bxf2+ $11 15. Kxf2 Qd4+ 16. Kf1 (16. Kg3 Rae8 $11) 16... Ng4) ({Predecessor:} 14... Bxf2+ 15. Kxf2 Qd4+ 16. Be3 Ng4+ 17. Kf3 Nxe3 18. Rxe3 Rae8 19. Re2 Qf6+ 20. Kg3 g5 21. Rf2 Qd6+ 22. Kh3 Qh6+ 23. Kg4 Qh4+ {0-1 Bjerre,J (2506)-Dubov,D (2699) EU-chT 22nd Batumi 2019 (1.1)}) 15. Be3 $14 {[%emt 0:06:16]} Bb4 {[%emt 0:00:13]} 16. Nc3 {[%emt 0:01:33]} (16. Bd2 {looks sharper.} Bc5 17. Nc3 Qxc6 18. Rc1) 16... Qxc6 {[%emt 0:00:12]} 17. Rc1 {[%emt 0:02:11] Threatens to win with Na2.} Qd7 {[%emt 0:00:34]} 18. Qc2 {[%emt 0:05:09]} Rfe8 {[%emt 0:15:55]} 19. h3 {[%emt 0:05:31]} Re6 {[%emt 0:02:45]} 20. Red1 {[%emt 0:13:00]} Rae8 {[%emt 0:08:44]} 21. axb5 {[%emt 0:02:43]} axb5 {[%emt 0:00:11]} 22. Ne4 {[%emt 0:02:31]} Nd5 {[%emt 0:00:07]} 23. Bc5 {[%emt 0:03:21]} (23. Bd2 $5 {[%cal Rd2b4]}) 23... f5 {[%emt 0:07:49][%cal Bf7f5,Bf5f4,Bf4f3][%mdl 32] ...Rc6 is the strong threat.} 24. Ng3 $2 {[%emt 0:00:55] [#]} (24. Bxb4 $14 {is the one way to stay ahead.} Nxb4 25. Nc5 (25. Qxc7 Qxc7 26. Rxc7 fxe4 $15) 25... Nxc2 26. Nxd7 Re1+ 27. Rxe1 Rxe1+ 28. Rxe1 Nxe1 29. Ne5) 24... f4 $1 $19 {[%emt 0:02:46][%mdl 1024] Black has strong compensation.} 25. Ne4 {[%emt 0:00:52]} Rg6 {[%emt 0:00:06]} 26. Kh2 {[%emt 0:00:42][%mdl 8192] [#] Now White is beyond hope.} (26. Bxb4 $17 Qxh3 27. Ng3) 26... f3 $1 {[%emt 0:00:33][%mdl 512]} 27. g3 {[%emt 0:01:07] [#]} (27. g4 Rh6) 27... Nf4 $1 {[%emt 0:00:07][%mdl 512] Black mates.} 28. g4 {[%emt 0:00:28] [#]} Rxg4 $1 {[%emt 0:00:19][%mdl 512]} 29. hxg4 {[%emt 0:00:15] [#]} Qxg4 $1 {[%emt 0:00:14][%csl Gf3,Gf4][%cal Rg4g2]} 30. Nf6+ {[%emt 0:00:32]} gxf6 {[%emt 0:00:08][%csl Gf3,Gf4][%cal Rg4g2]} 31. Rg1 {[%emt 0:00:20]} Ng2 {[%emt 0:00:05]} 32. Rxg2 {[%emt 0:00:49]} Qxg2# {[%emt 0:00:07] Beautiful play by Winkelman!   Weighted Error Value: White=0.68/Black=0.12 (very precise)} 0-1

[Event "Oceania Zonal Open 2023"]
[Site "Melbourne"]
[Date "2023.01.23"]
[Round "1.10"]
[White "Hong, Xavier"]
[Black "Kethro, Michael"]
[Result "1/2-1/2"]
[ECO "D00"]
[WhiteElo "1616"]
[BlackElo "2149"]
[Annotator "TA"]
[PlyCount "59"]
[EventDate "2023.01.09"]
[EventType "swiss"]
[EventCountry "AUS"]
[SourceTitle "playchess.com"]
[Source "ChessBase"]
[SourceQuality "1"]
[TimeControl "5400+30"]

{[%evp 9,59,-49,21,20,13,5,15,0,21,-25,-4,-10,0,0,0,0,5,-14,-9,-16,-16,-41,-47,-53,-6,-36,0,-47,-54,-89,0,-102,-92,-86,100,103,183,176,339,7,14,15,0,0,0,0,126,0,0,0,116,0]} 1. d4 {[%emt 0:00:42]} d5 {[%emt 0:00:27]} 2. Bg5 {[%emt 0:00:59]} f6 {[%emt 0:00:48]} 3. Bd2 {[%emt 0:00:08]} Nc6 {[%emt 0:01:37][%cal Bb8c6,Bc6e7,Be7d5][%mdl 32]} 4. e3 {[%emt 0:01:09]} e5 {[%emt 0:00:33] [#]} 5. Bd3 $146 {[%emt 0:08:32]} ({Predecessor:} 5. Bb5 Bd6 6. c4 dxc4 7. d5 a6 8. Bxc4 Nce7 9. Nf3 Nh6 10. e4 Nf7 11. Nc3 {½-½ Moiseenko,A (2648)-Blomqvist,E (2545) Oslo op Fornebu 2016 (6)}) 5... e4 {[%emt 0:03:35]} (5... exd4 6. Qh5+ Ke7 7. exd4 $14) (5... Be6 $15) 6. Be2 $11 {[%emt 0:05:32] D00: 1 d4 d5: Unusual lines.} f5 {[%emt 0:01:04]} 7. c4 {[%emt 0:01:25]} Nf6 {[%emt 0:00:34]} 8. Qb3 {[%emt 0:01:27] The position is equal.} Ne7 {[%emt 0:11:48]} 9. Bb4 {[%emt 0:11:24]} (9. Nc3 {might be stronger.}) 9... Be6 {[%emt 0:05:09]} (9... Nc6 10. Bxf8 Kxf8 11. Nh3 $11) 10. Nc3 {[%emt 0:03:20]} dxc4 {[%emt 0:06:52]} 11. Bxc4 {[%emt 0:00:26]} Bxc4 {[%emt 0:00:51]} 12. Qxc4 {[%emt 0:00:08]} c6 {[%emt 0:02:00]} 13. Nh3 {[%emt 0:07:39]} Ned5 {[%emt 0:01:54]} 14. Bxf8 {[%emt 0:02:45]} Rxf8 {[%emt 0:01:18]} 15. O-O {[%emt 0:13:36]} Qd7 {[%emt 0:02:34]} 16. Rab1 {[%emt 0:11:08]} Rd8 {[%emt 0:04:26]} (16... h6 $15) 17. b4 {[%emt 0:02:10]} g5 {[%emt 0:22:46]} 18. b5 {[%emt 0:11:56]} (18. Nxg5 $11 {should be considered.} Nxc3 19. Qxc3) 18... Rc8 $15 {[%emt 0:09:17] And now ...cxb5 would win.} 19. Na4 {[%emt 0:03:26]} (19. Nxg5 $2 {loses.} h6 20. Ngxe4 fxe4 21. Nxd5 cxd5 $19) 19... g4 {[%emt 0:16:06]} (19... cxb5 $17 20. Qxb5 g4) 20. Nf4 {[%emt 0:03:39]} (20. Nc5 $1 $11 {was the only way to keep the balance.} cxb5 21. Nxd7 bxc4 22. Nxf8 gxh3 23. Ne6 hxg2 24. Rfc1 (24. Kxg2 Ke7 $11)) 20... Nxf4 {[%emt 0:00:55]} 21. exf4 {[%emt 0:00:02]} Nd5 $2 {[%emt 0:03:10]} (21... cxb5 $17 22. Qxb5 b6) 22. Nc5 $16 {[%emt 0:05:21]} Qf7 {[%emt 0:01:00]} (22... cxb5 $16 {was called for.} 23. Nxd7 {[%mdl 64] Discovered Attack} (23. Rxb5 Qc6 $11) 23... bxc4 24. Nxf8 Nxf4) 23. bxc6 $18 {[%emt 0:02:55]} Rxc6 {[%emt 0:02:36]} (23... bxc6 24. Rb7 Rc7) 24. Rxb7 $2 {[%emt 0:02:00]} (24. Qa4 $1 $18 Nb6 25. Qxa7) 24... Qxb7 $11 {[%emt 0:00:32]} 25. Qxd5 {[%emt 0:00:09]} Qc8 {[%emt 0:00:36]} 26. Rb1 {[%emt 0:00:59][%cal Ob1b8] Threatens to win with Rb8! Some like it hot} Rb6 {[%emt 0:00:28][%cal Rb6b1] Wards off Rb8} 27. Rc1 {[%emt 0:00:19]} Rc6 {[%emt 0:00:25] [#]} (27... Qc7 $11 {remains equal.}) 28. Rb1 {[%emt 0:00:04] White has more active pieces.} ({White should try} 28. h3 $1 $16 {[%cal Rh3g4]}) 28... Rb6 {[%emt 0:00:35][%cal Rb6b1]} 29. Rc1 {[%emt 0:00:06]} Rc6 {[%emt 0:00:29] [#]} (29... Qc7 $11) 30. Rb1 {[%emt 0:01:24] An exciting game.   Weighted Error Value: White=0.37/Black=0.48} ({White should play} 30. h3 $1 $16 {[%cal Rh3g4]}) 1/2-1/2

[Event "Oceania Zonal Open 2023"]
[Site "Melbourne"]
[Date "2023.01.23"]
[Round "1.11"]
[White "Croad, Nicolas"]
[Black "Ritter, Theo"]
[Result "1-0"]
[ECO "E32"]
[WhiteElo "2218"]
[BlackElo "1631"]
[Annotator "TA"]
[PlyCount "97"]
[EventDate "2023.01.09"]
[EventType "swiss"]
[EventCountry "AUS"]
[SourceTitle "playchess.com"]
[Source "ChessBase"]
[SourceQuality "1"]
[TimeControl "5400+30"]

{[%evp 13,97,16,12,12,84,57,59,37,85,83,74,15,66,60,72,71,75,66,70,73,152,92,116,120,120,105,138,114,226,195,504,510,510,510,554,570,555,567,606,473,479,463,410,417,475,457,451,406,433,426,29971,29972,29972,2901,29988,29989,29989,29990,29990,29991,29991,29974,29973,29974,29974,29975,29970,29971,29966,29965,1124,724,1075,877,854,822,1062,953,29953,6206,29985,29986,29986,29983,29987,29988]} 1. d4 {[%emt 0:00:05]} Nf6 {[%emt 0:00:13]} 2. c4 {[%emt 0:00:08]} e6 {[%emt 0:00:05]} 3. Nc3 {[%emt 0:00:09]} Bb4 {[%emt 0:00:06]} 4. Qc2 {[%emt 0:00:09]} c5 {[%emt 0:00:18]} 5. dxc5 {[%emt 0:00:20]} O-O {[%emt 0:00:32]} 6. Bg5 {[%emt 0:04:24]} h6 {[%emt 0:03:01]} 7. Bh4 {[%emt 0:00:50]} Na6 {[%emt 0:06:35]} 8. a3 {[%emt 0:06:49] E32: Nimzo-Indian: Classical (4 Qc2): 4...0-0.} Bxc5 {[%emt 0:02:26]} (8... Qa5 $11) 9. e3 {[%emt 0:01:11]} Be7 {[%emt 0:03:17]} 10. Nf3 {[%emt 0:01:02] [#] White is slightly better.} Qa5 $146 {[%emt 0:06:10]} (10... b6 $14) ({Predecessor:} 10... b6 11. Be2 Bb7 12. b4 Nb8 13. O-O a5 14. bxa5 Rxa5 15. Nb5 Na6 16. Rfd1 Ne4 17. Bxe7 Qxe7 {0-1 Zawadzka,B (2292)-Socko,B (2637) Wroclaw Polonia op 4th 2009 (1)}) 11. Be2 $16 {[%emt 0:06:29]} d5 {[%emt 0:07:14]} 12. cxd5 {[%emt 0:04:34]} (12. O-O $16) 12... Nxd5 {[%emt 0:04:08]} (12... Nb4 $11 13. Qd2 Nbxd5) 13. Bxe7 $14 {[%emt 0:00:22]} Nxe7 {[%emt 0:00:11]} 14. O-O $36 {[%emt 0:00:14][%mdl 2048] White has strong initiative.} Bd7 {[%emt 0:02:41]} 15. b4 {[%emt 0:01:49]} Qc7 {[%emt 0:07:38]} 16. Rac1 {[%emt 0:00:35]} Ng6 {[%emt 0:08:11] [#]} (16... Rac8 $142) 17. Qb2 {[%emt 0:07:21]} (17. b5 $142 $1 {[%cal Rb5a6]} Nc5 18. Na4) 17... Qd8 {[%emt 0:10:46]} 18. Rfd1 {[%emt 0:01:30] Hoping for Ne4.} Qe7 {[%emt 0:02:56]} 19. Bd3 {[%emt 0:06:52] White is more active.} f5 {[%emt 0:02:26]} 20. e4 {[%emt 0:02:50] exf5 would be deadly.} f4 {[%emt 0:05:32]} (20... Nc7 $16) 21. e5 $18 {[%emt 0:01:54]} Nh4 {[%emt 0:00:32]} (21... Bc6 {is more resistant.}) 22. Nxh4 {[%emt 0:00:34]} Qxh4 {[%emt 0:02:03]} 23. Bxa6 {[%emt 0:02:50][%mdl 64] [#] Discovered Attack} bxa6 {[%emt 0:00:52]} 24. Rxd7 {[%emt 0:01:38]} f3 {[%emt 0:00:43] Threatens to win with ...Qg4.} 25. Nd1 {[%emt 0:01:08]} (25. g3 $2 Qh3) 25... Rf5 {[%emt 0:04:10]} 26. Ne3 {[%emt 0:04:46]} Rh5 {[%emt 0:01:30]} 27. gxf3 {[%emt 0:03:12] aiming for Ng4.} (27. h3 fxg2 28. f3 (28. Nxg2 Qxh3 29. f4 Rf8 $11) 28... Rg5 $18) 27... Qxh2+ {[%emt 0:03:14]} 28. Kf1 {[%emt 0:00:04][%cal Bg1f1,Bf1e2,Be2d3,Bd3c3,Bc3b3,Bb3b2][%mdl 32]} Rf8 {[%emt 0:01:51]} 29. Rcc7 {[%emt 0:03:46]} ({Not} 29. Rxa7 Qh3+ 30. Ke2 (30. Ke1 Qxf3 31. Qe2 Rh1+ 32. Nf1 Qxa3 $11) 30... Qxf3+ 31. Kd3 (31. Ke1 Rh1+ {[%mdl 64] Deflection} 32. Kd2 Qxf2+ 33. Kd3 Rd8+ 34. Kc4 Qxb2 35. Rxh1 Qe2+ 36. Kb3 Qxe3+ 37. Ka4 Qxa7 38. Rb1 Qc7 39. b5 axb5+ 40. Rxb5 Qc4+ 41. Ka5 Ra8+ {[%mdl 64] Skewer} 42. Kb6 Rb8+ {[%mdl 64] Skewer, Deflection} 43. Ka7 Qxb5 44. a4 Qb7#) 31... Rd8+ 32. Kc4 Rh2 $18) 29... Qh1+ {[%emt 0:02:01]} 30. Ke2 {[%emt 0:00:04]} Qxf3+ {[%emt 0:00:58]} 31. Kd3 {[%emt 0:01:12]} Rf4 {[%emt 0:03:47]} (31... Rg5 $18 32. Rxa7 Qc6) 32. Rxg7+ {[%emt 0:12:51]} Kf8 {[%emt 0:00:15]} 33. Rgd7 {[%emt 0:02:01]} (33. Qc3 $142 Qe4+ 34. Ke2 (34. Kd2 Rxf2+ 35. Ke1 Rc2 $11 {[%mdl 64] Decoy}) 34... Qd4 35. Rh7 Rxf2+ {[%mdl 64] Decoy} 36. Kxf2 Qf4+ 37. Ke2 Rh2+ 38. Kd3) 33... Qe4+ {[%emt 0:01:22]} 34. Kc3 {[%emt 0:00:14][%cal Rd7d8]} Qxe5+ {[%emt 0:04:37]} 35. Kb3 {[%emt 0:00:07][%cal Rc7c8]} Qxb2+ {[%emt 0:00:37]} 36. Kxb2 {[%emt 0:00:04][%cal Rc7c8]} Rxf2+ {[%emt 0:00:27]} 37. Kc3 {[%emt 0:00:37][%cal Rc7c8]} Kg8 {[%emt 0:00:20]} 38. Rg7+ {[%emt 0:00:51]} Kf8 {[%emt 0:00:40]} 39. Rh7 {[%emt 0:00:06][%cal Rc7c8]} Kg8 {[%emt 0:00:39]} 40. Rcg7+ {[%emt 0:00:12]} ({Less strong is} 40. Rxa7 Rh3 41. Rhg7+ Kh8 $18) 40... Kf8 {[%emt 0:00:15]} 41. Rxa7 {[%emt 0:00:05][%cal Ra7a8]} Kg8 {[%emt 0:00:20]} 42. Rhe7 {[%emt 0:05:03][%cal Oe3g4] And now Ng4! would win.} e5 {[%emt 0:01:50]} 43. Rxa6 {[%emt 0:01:40]} Rf3 {[%emt 0:00:40]} 44. Kd3 {[%emt 0:00:49]} Kf8 {[%emt 0:01:56]} 45. Rc7 {[%emt 0:02:27][%cal Ra6a8]} Kg8 {[%emt 0:00:08]} 46. b5 {[%emt 0:02:54][%cal Bb4b5,Bb5b6][%mdl 32] Intending b6 and mate.} Rhh3 {[%emt 0:00:29]} 47. Ra8+ {[%emt 0:00:13] White mates.} Rf8 {[%emt 0:00:07]} 48. Rxf8+ {[%emt 0:00:07]} Kxf8 {[%emt 0:00:07]} 49. b6 {[%emt 0:00:04] Artfully played by Croad.   Weighted Error Value: White=0.14 (very precise) /Black=0.55} 1-0

[Event "Oceania Zonal Open 2023"]
[Site "Melbourne"]
[Date "2023.01.23"]
[Round "1.11"]
[White "Fu, Yihe"]
[Black "Pearce, Tim"]
[Result "1-0"]
[ECO "B28"]
[WhiteElo "2149"]
[BlackElo "1616"]
[Annotator "TA"]
[PlyCount "85"]
[EventDate "2023.01.09"]
[EventType "swiss"]
[EventCountry "AUS"]
[SourceTitle "playchess.com"]
[Source "ChessBase"]
[SourceQuality "1"]
[TimeControl "5400+30"]

{[%evp 16,85,34,27,76,68,174,9,28,12,101,95,152,156,287,292,283,159,147,104,87,97,84,80,88,88,105,99,95,101,121,123,137,62,60,60,71,70,131,118,223,195,223,212,197,187,327,321,320,325,340,322,335,328,316,309,610,593,1266,1114,1022,693,1376,1206,6195,6195,29981,29982,29982,29983,29981,29982]} 1. e4 {[%emt 0:00:02]} c5 {[%emt 0:00:02]} 2. Nf3 {[%emt 0:00:13]} a6 {[%emt 0:00:05]} 3. d4 {[%emt 0:00:11]} cxd4 {[%emt 0:00:05]} 4. Nxd4 {[%emt 0:00:07]} Nf6 {[%emt 0:00:04]} 5. Nc3 {[%emt 0:02:25]} e5 {[%emt 0:00:07]} 6. Nf3 {[%emt 0:01:13]} Bb4 {[%emt 0:00:22]} 7. Bc4 {[%emt 0:05:16]} Qc7 {[%emt 0:03:50]} 8. Qd3 {[%emt 0:01:39]} b5 {[%emt 0:01:38]} 9. Bb3 {[%emt 0:00:32]} Bxc3+ {[%emt 0:01:39] B28: Sicilian: 2 Nf3 a6 (O'Kelly Variation).} (9... d6 $11 {is more appropriate.}) 10. bxc3 $16 {[%emt 0:01:16] Black must now prevent Ba3.} O-O {[%emt 0:00:52]} (10... d5 $14 11. exd5 (11. Bxd5 Nxd5 12. exd5 O-O $14) 11... O-O) 11. O-O $2 {[%emt 0:01:22]} (11. Ba3 $18) 11... Bb7 $11 {[%emt 0:03:28] The position is equal.} 12. Re1 {[%emt 0:01:03] [#] Ba3 would be deadly.} d6 $146 {[%emt 0:06:53]} (12... d5 $1 $11 {keeps the balance.} 13. exd5 (13. Bxd5 Bxd5 14. exd5 e4 $15) 13... e4 14. Rxe4 (14. d6 $2 Qc8 $19) 14... Nxe4 15. Qxe4 Nd7) ({Predecessor:} 12... h6 13. Ba3 Rc8 14. Bd6 Qxc3 15. Nxe5 Qxd3 16. Bxf7+ Kh8 17. cxd3 Nc6 18. Nxc6 Bxc6 {0-1 Plotnikov,P (2297)-Sergienko,S (2337) Titled Tuesday intern op 19th Oct blitz 2021 (8)}) 13. Ba3 $16 {[%emt 0:04:48]} Rd8 {[%emt 0:02:03]} (13... Ne8 $142) 14. Rad1 $36 {[%emt 0:02:42][%mdl 2048] White is really pushing.} Nbd7 {[%emt 0:10:38]} (14... Nc6 $16) 15. Bxd6 $18 {[%emt 0:14:47]} Qc6 {[%emt 0:00:08]} 16. Qe3 {[%emt 0:06:55] Wards off Nc5} (16. Nxe5 $2 {too greedy.} Nxe5 17. Bxe5 Rxd3 18. cxd3 a5 $19) ({Much less strong is} 16. Bxe5 $6 Nxe4 17. Bxf7+ Kxf7 $18) ({Better is} 16. Ba3 $18) 16... h6 $16 {[%emt 0:05:47]} 17. Bxe5 {[%emt 0:05:55]} Qxe4 {[%emt 0:01:25]} 18. Qxe4 {[%emt 0:03:52]} (18. Bxf6 {simplifies} Qxe3 19. Bxd8 Qxe1+ 20. Nxe1 Rxd8 21. c4) 18... Bxe4 {[%emt 0:03:02]} 19. Bc7 {[%emt 0:00:24]} Bxf3 {[%emt 0:04:51]} 20. gxf3 {[%emt 0:02:18]} Re8 {[%emt 0:02:13]} 21. Rxe8+ {[%emt 0:03:22]} Rxe8 {[%emt 0:00:07]} 22. Rd6 {[%emt 0:00:27]} Rc8 {[%emt 0:01:58]} 23. Ba5 {[%emt 0:01:12] White has more active pieces.} Nc5 {[%emt 0:04:43]} 24. Rd8+ {[%emt 0:01:25]} (24. Bb4 $16) 24... Rxd8 $14 {[%emt 0:00:11]} 25. Bxd8 {[%emt 0:00:08][%mdl 4096] Endgame KBB-KNN} Nfd7 {[%emt 0:01:15]} 26. Bd5 {[%emt 0:00:48] Black is on the road to losing.} Kf8 {[%emt 0:01:02]} (26... Ne6 $14 27. Be7 Ne5) 27. c4 $16 {[%emt 0:01:30]} Ne5 {[%emt 0:04:35]} (27... Ne6 $16) 28. cxb5 $18 {[%emt 0:01:28]} axb5 {[%emt 0:00:13]} 29. Bc7 {[%emt 0:00:51]} Ncd7 {[%emt 0:03:14]} 30. f4 {[%emt 0:00:37]} Nc4 {[%emt 0:02:46]} (30... Nf6 {keeps fighting.} 31. Bd6+ Kg8) 31. Bc6 {[%emt 0:01:06][%csl LRb5,LRd7]} Ke7 {[%emt 0:02:01]} 32. Bxb5 {[%emt 0:00:13] This pair of bishops is nice.} Na3 {[%emt 0:00:17]} 33. Bd3 {[%emt 0:02:38] [#] aiming for Ba5.} Nc5 {[%emt 0:01:14]} 34. Ba5 {[%emt 0:00:27] Threatens to win with Bb4.} Nxd3 {[%emt 0:03:39]} 35. cxd3 {[%emt 0:00:13] And now Bb4+ would win. KB-KN} Nc2 {[%emt 0:00:19] Prevents Bb4+.} (35... Nb5 36. Bb4+ Ke8) 36. Bc3 {[%emt 0:00:44]} g6 {[%emt 0:00:39]} 37. Kf1 {[%emt 0:00:25]} Kd6 {[%emt 0:00:46]} 38. Ke2 {[%emt 0:00:16]} Kd5 {[%emt 0:01:38]} 39. a4 {[%emt 0:00:46]} f5 {[%emt 0:02:27]} 40. Kd2 {[%emt 0:00:31]} Nd4 {[%emt 0:01:06]} 41. Bxd4 {[%emt 0:00:10] White mates.} Kxd4 {[%emt 0:00:05]} 42. h4 {[%emt 0:00:12]} Kc5 {[%emt 0:00:51]} 43. Kc3 {[%emt 0:00:08] Weighted Error Value: White=0.22 (precise) /Black=0.60} 1-0